[Event "GrandPrix_30.05"]
[Site "Chess.com"]
[Date "2020.05.30"]
[Round "4"]
[White "Baron_von_Koenig"]
[Black "Zakaryan_David"]
[Result "1/2-1/2"]
[WhiteElo "2105"]
[BlackElo "1615"]
[TimeControl "600+2"]
[EndTime "9:56:16 PDT"]
[Termination "Game drawn by repetition"]

1. Nc3 {[%clk 0:10:01.9]} 1... d5 {[%clk 0:09:39.6]} 2. e4 {[%clk 0:10:02.3]}
2... Nf6 {[%clk 0:09:39.8]} 3. e5 {[%clk 0:10:02.8]} 3... Ne4 {[%clk 0:09:39.5]}
4. Nce2 {[%clk 0:10:03.5]} 4... Bf5 {[%clk 0:09:12.2]} 5. d4 {[%clk 0:09:17.8]}
5... f6 {[%clk 0:07:17.8]} 6. f3 {[%clk 0:08:11.1]} 6... Ng5 {[%clk 0:07:16.9]}
7. g4 {[%clk 0:07:18.6]} 7... Bd7 {[%clk 0:07:09.8]} 8. h4 {[%clk 0:06:22.8]}
8... Nf7 {[%clk 0:07:02.7]} 9. Nc3 {[%clk 0:06:02.7]} 9... fxe5 {[%clk
0:06:49.5]} 10. dxe5 {[%clk 0:06:03.5]} 10... e6 {[%clk 0:06:48.6]} 11. f4
{[%clk 0:06:04.3]} 11... c5 {[%clk 0:06:38.1]} 12. Nf3 {[%clk 0:05:57.7]} 12...
Nc6 {[%clk 0:06:37.8]} 13. Ng5 {[%clk 0:05:41.3]} 13... Nxg5 {[%clk 0:06:25.7]}
14. hxg5 {[%clk 0:05:42]} 14... Qb6 {[%clk 0:06:23.2]} 15. Bd3 {[%clk
0:05:42.1]} 15... c4 {[%clk 0:06:16.6]} 16. Bg6+ {[%clk 0:05:17.1]} 16... hxg6
{[%clk 0:06:13.6]} 17. Rxh8 {[%clk 0:05:17.8]} 17... Qg1+ {[%clk 0:05:57.9]} 18.
Kd2 {[%clk 0:05:18.8]} 18... Qf2+ {[%clk 0:05:46]} 19. Ne2 {[%clk 0:05:03.2]}
19... Nd4 {[%clk 0:04:27.9]} 20. c3 {[%clk 0:05:00.8]} 20... O-O-O {[%clk
0:04:07.4]} 21. Rxf8 {[%clk 0:03:58.4]} 21... Nf3+ {[%clk 0:04:06.7]} 22. Kc2
{[%clk 0:03:59.6]} 22... Rxf8 {[%clk 0:04:06.5]} 23. Bd2 {[%clk 0:04:00.8]}
23... Ba4+ {[%clk 0:03:58.7]} 24. b3 {[%clk 0:04:00.8]} 24... Bb5 {[%clk
0:03:50]} 25. Ng1 {[%clk 0:03:35.5]} 25... Nxg1 {[%clk 0:03:05.4]} 26. Qxg1
{[%clk 0:03:33.6]} 26... Rxf4 {[%clk 0:03:05.8]} 27. Qxf2 {[%clk 0:03:26]} 27...
Rxf2 {[%clk 0:03:07.7]} 28. Rh1 {[%clk 0:03:14.6]} 28... cxb3+ {[%clk
0:02:29.9]} 29. axb3 {[%clk 0:03:14.8]} 29... b6 {[%clk 0:02:21.7]} 30. Rh8+
{[%clk 0:02:46.7]} 30... Kc7 {[%clk 0:02:19.2]} 31. Rg8 {[%clk 0:02:42.6]} 31...
Rf7 {[%clk 0:02:18]} 32. Be3 {[%clk 0:02:40.2]} 32... Be2 {[%clk 0:02:09.3]} 33.
Re8 {[%clk 0:02:09.9]} 33... Bxg4 {[%clk 0:02:09.1]} 34. Kd2 {[%clk 0:02:11.5]}
34... a5 {[%clk 0:01:54.7]} 35. Kd3 {[%clk 0:01:30.8]} 35... Kb7 {[%clk
0:01:45.7]} 36. Rd8 {[%clk 0:01:28.7]} 36... Bf5+ {[%clk 0:01:40.9]} 37. Kd2
{[%clk 0:01:22.8]} 37... Rc7 {[%clk 0:01:41.4]} 38. Rd6 {[%clk 0:01:22.9]} 38...
Rc6 {[%clk 0:01:39.1]} 39. Rd7+ {[%clk 0:01:24.2]} 39... Ka6 {[%clk 0:01:38.2]}
40. Rxg7 {[%clk 0:01:25.1]} 40... Rc8 {[%clk 0:01:29.3]} 41. Rd7 {[%clk
0:01:23.4]} 41... Rb8 {[%clk 0:01:20.7]} 42. Rd6 {[%clk 0:01:23.5]} 42... Kb5
{[%clk 0:01:20.4]} 43. Bd4 {[%clk 0:01:14.8]} 43... Rb7 {[%clk 0:01:20.1]} 44.
Ke3 {[%clk 0:01:15.1]} 44... Bc2 {[%clk 0:01:19.9]} 45. b4 {[%clk 0:01:11.3]}
45... a4 {[%clk 0:01:19.2]} 46. Rd8 {[%clk 0:01:12.1]} 46... Ra7 {[%clk
0:01:18.3]} 47. Rb8 {[%clk 0:01:12.2]} 47... a3 {[%clk 0:01:01.6]} 48. Bxb6
{[%clk 0:01:12.5]} 48... Ra6 {[%clk 0:01:00.1]} 49. Bd4+ {[%clk 0:01:10.2]}
49... Kc4 {[%clk 0:01:00.9]} 50. b5 {[%clk 0:01:00.7]} 50... Ra4 {[%clk
0:01:01.5]} 51. b6 {[%clk 0:01:01.9]} 51... a2 {[%clk 0:01:01.3]} 52. b7 {[%clk
0:00:57.6]} 52... a1=Q {[%clk 0:00:54.2]} 53. Rc8+ {[%clk 0:00:58.2]} 53... Kb3
{[%clk 0:00:54.7]} 54. b8=Q+ {[%clk 0:00:58.5]} 54... Ka2 {[%clk 0:00:55.2]} 55.
Qb5 {[%clk 0:00:38]} 55... Qc1+ {[%clk 0:00:41]} 56. Kf2 {[%clk 0:00:38]} 56...
Qd2+ {[%clk 0:00:38.3]} 57. Qe2 {[%clk 0:00:37.9]} 57... Qf4+ {[%clk 0:00:38.6]}
58. Ke1 {[%clk 0:00:37]} 58... Qc1+ {[%clk 0:00:38]} 59. Kf2 {[%clk 0:00:38]}
59... Qf4+ {[%clk 0:00:38.3]} 60. Ke1 {[%clk 0:00:38.9]} 60... Qh4+ {[%clk
0:00:30.8]} 61. Kd2 {[%clk 0:00:39.4]} 61... Ka1 {[%clk 0:00:27.8]} 62. Qe1+
{[%clk 0:00:35.3]} 62... Qxe1+ {[%clk 0:00:28.1]} 63. Kxe1 {[%clk 0:00:35.7]}
63... Bf5 {[%clk 0:00:28.3]} 64. Kd2 {[%clk 0:00:36.3]} 64... Ka2 {[%clk
0:00:28.9]} 65. Rb8 {[%clk 0:00:36.6]} 65... Ka3 {[%clk 0:00:28.4]} 66. Rb7
{[%clk 0:00:35.4]} 66... Ka2 {[%clk 0:00:28.8]} 67. Ra7 {[%clk 0:00:32.6]} 67...
Rxa7 {[%clk 0:00:29.3]} 68. Bxa7 {[%clk 0:00:33.5]} 68... Kb3 {[%clk 0:00:29.9]}
69. Bd4 {[%clk 0:00:35]} 69... Kc4 {[%clk 0:00:30.6]} 70. Ke3 {[%clk 0:00:36]}
70... Kb3 {[%clk 0:00:31.1]} 71. Kd2 {[%clk 0:00:36.5]} 71... Kb2 {[%clk
0:00:32]} 72. Bc5 {[%clk 0:00:36.1]} 72... Be4 {[%clk 0:00:32.6]} 73. Bd4 {[%clk
0:00:37]} 73... Bf5 {[%clk 0:00:33.2]} 74. Bc5 {[%clk 0:00:37.2]} 74... Kb3
{[%clk 0:00:33.6]} 75. Bd4 {[%clk 0:00:37.7]} 1/2-1/2

[Event "GrandPrix_30.05"]
[Site "Chess.com"]
[Date "2020.05.30"]
[Round "4"]
[White "RitvarsReimanis"]
[Black "khekhm"]
[Result "0-1"]
[WhiteElo "2132"]
[BlackElo "2437"]
[TimeControl "600+2"]
[EndTime "9:56:23 PDT"]
[Termination "khekhm won by resignation"]

1. d4 {[%clk 0:10:00.2]} 1... Nf6 {[%clk 0:09:59.2]} 2. c4 {[%clk 0:10:01.2]}
2... g6 {[%clk 0:10:00.1]} 3. Nc3 {[%clk 0:10:02]} 3... d5 {[%clk 0:10:01.3]} 4.
cxd5 {[%clk 0:10:03.9]} 4... Nxd5 {[%clk 0:10:03]} 5. e4 {[%clk 0:10:05.7]} 5...
Nxc3 {[%clk 0:10:04.2]} 6. bxc3 {[%clk 0:10:07.6]} 6... Bg7 {[%clk 0:10:05.8]}
7. Be3 {[%clk 0:10:09.5]} 7... c5 {[%clk 0:10:06.7]} 8. Qd2 {[%clk 0:10:11.4]}
8... Qa5 {[%clk 0:10:06.3]} 9. Rc1 {[%clk 0:10:12.3]} 9... O-O {[%clk
0:10:05.1]} 10. Nf3 {[%clk 0:10:06.9]} 10... Bg4 {[%clk 0:10:05.2]} 11. Be2
{[%clk 0:09:58.5]} 11... Rd8 {[%clk 0:09:48.4]} 12. d5 {[%clk 0:09:54.4]} 12...
Nc6 {[%clk 0:09:26.4]} 13. O-O {[%clk 0:09:49.9]} 13... Rac8 {[%clk 0:08:56.8]}
14. Qb2 {[%clk 0:08:52.8]} 14... Bxf3 {[%clk 0:08:10.3]} 15. gxf3 {[%clk
0:08:35.2]} 15... Ne5 {[%clk 0:08:05.2]} 16. f4 {[%clk 0:08:14.4]} 16... Nd7
{[%clk 0:08:05.1]} 17. Qxb7 {[%clk 0:06:40.8]} 17... Bxc3 {[%clk 0:07:27.6]} 18.
Qa6 {[%clk 0:06:18.6]} 18... Rc7 {[%clk 0:06:42]} 19. Rfd1 {[%clk 0:05:10.3]}
19... Rb8 {[%clk 0:05:12]} 20. Qxa5 {[%clk 0:04:21.5]} 20... Bxa5 {[%clk
0:05:11.1]} 21. Rc2 {[%clk 0:04:19.9]} 21... Rcb7 {[%clk 0:04:15.6]} 22. e5
{[%clk 0:03:40.2]} 22... Rb2 {[%clk 0:04:04.2]} 23. Rdc1 {[%clk 0:03:32.2]}
23... Rxc2 {[%clk 0:03:29.9]} 24. Rxc2 {[%clk 0:03:34.1]} 24... Rb1+ {[%clk
0:03:31.2]} 25. Kg2 {[%clk 0:03:33.3]} 25... Bb6 {[%clk 0:03:28.1]} 26. Bg4
{[%clk 0:03:26.4]} 26... f5 {[%clk 0:03:28]} 27. Be2 {[%clk 0:02:49.1]} 27...
Kf8 {[%clk 0:03:18.9]} 28. a4 {[%clk 0:02:48.7]} 28... Ke8 {[%clk 0:02:47]} 29.
Bb5 {[%clk 0:02:18.9]} 29... Kd8 {[%clk 0:02:47.9]} 30. h4 {[%clk 0:01:43.3]}
30... Rd1 {[%clk 0:01:51.7]} 31. Bc6 {[%clk 0:01:11.3]} 31... Rd3 {[%clk
0:00:20]} 32. Rc1 {[%clk 0:00:57]} 32... Nb8 {[%clk 0:00:16.1]} 33. Bb7 {[%clk
0:00:35.2]} 33... Kc7 {[%clk 0:00:13.1]} 34. Ba8 {[%clk 0:00:31.8]} 34... Nd7
{[%clk 0:00:07.7]} 35. Bc6 {[%clk 0:00:26.8]} 35... Ra3 {[%clk 0:00:07]} 36.
Bxd7 {[%clk 0:00:15.6]} 36... Kxd7 {[%clk 0:00:08.9]} 37. Bxc5 {[%clk
0:00:16.9]} 37... Rxa4 {[%clk 0:00:08.9]} 38. e6+ {[%clk 0:00:17.9]} 38... Kd8
{[%clk 0:00:09.4]} 39. Be3 {[%clk 0:00:16.9]} 39... Bc7 {[%clk 0:00:07.8]} 40.
Kf3 {[%clk 0:00:16.2]} 40... a5 {[%clk 0:00:07.6]} 41. Rc6 {[%clk 0:00:16.9]}
41... Ra2 {[%clk 0:00:05.3]} 42. Ra6 {[%clk 0:00:17.9]} 42... Kc8 {[%clk
0:00:05.4]} 43. Ra8+ {[%clk 0:00:14.1]} 43... Kb7 {[%clk 0:00:04.9]} 44. Ra7+
{[%clk 0:00:14.8]} 44... Kb8 {[%clk 0:00:05.3]} 45. Ra6 {[%clk 0:00:16.4]} 45...
Ra3 {[%clk 0:00:05.8]} 46. Ke2 {[%clk 0:00:12]} 46... Rb3 {[%clk 0:00:07.1]} 47.
Kd1 {[%clk 0:00:10.7]} 47... Rb5 {[%clk 0:00:07.5]} 48. d6 {[%clk 0:00:09.9]}
48... Bxd6 {[%clk 0:00:06.3]} 49. Kc2 {[%clk 0:00:11.1]} 49... Kb7 {[%clk
0:00:06.4]} 50. Ra7+ {[%clk 0:00:12.2]} 50... Kc6 {[%clk 0:00:07.9]} 51. Ra8
{[%clk 0:00:11.7]} 51... Kd5 {[%clk 0:00:09]} 52. Rh8 {[%clk 0:00:11.4]} 52...
Kxe6 {[%clk 0:00:10.4]} 53. Rxh7 {[%clk 0:00:13.3]} 53... Rb4 {[%clk 0:00:08.4]}
54. h5 {[%clk 0:00:14.3]} 54... gxh5 {[%clk 0:00:08.3]} 55. Rh6+ {[%clk
0:00:15.7]} 55... Kd5 {[%clk 0:00:08.1]} 56. Rxh5 {[%clk 0:00:17.6]} 56... Ke4
{[%clk 0:00:09.4]} 57. Rh7 {[%clk 0:00:16.7]} 57... a4 {[%clk 0:00:08.8]} 58.
Bc1 {[%clk 0:00:17.2]} 58... Rc4+ {[%clk 0:00:09.6]} 59. Kd1 {[%clk 0:00:17.4]}
59... a3 {[%clk 0:00:09.6]} 60. Rh8 {[%clk 0:00:18.8]} 60... Ra4 {[%clk
0:00:07.2]} 61. Rh3 {[%clk 0:00:17.2]} 61... a2 {[%clk 0:00:06.8]} 62. Re3+
{[%clk 0:00:18.7]} 62... Kd5 {[%clk 0:00:08.2]} 63. Bb2 {[%clk 0:00:13.5]} 63...
a1=Q+ {[%clk 0:00:07.6]} 64. Bxa1 {[%clk 0:00:15.1]} 64... Rxa1+ {[%clk
0:00:09]} 65. Ke2 {[%clk 0:00:16.6]} 65... Ra4 {[%clk 0:00:09.2]} 0-1

[Event "GrandPrix_30.05"]
[Site "Chess.com"]
[Date "2020.05.30"]
[Round "4"]
[White "igorkovalenko"]
[Black "TheNextLevelFan"]
[Result "1-0"]
[WhiteElo "2456"]
[BlackElo "2418"]
[TimeControl "600+2"]
[EndTime "9:56:24 PDT"]
[Termination "igorkovalenko won by resignation"]

1. d4 {[%clk 0:10:01.9]} 1... d5 {[%clk 0:10:00]} 2. Nf3 {[%clk 0:10:02.8]} 2...
Nf6 {[%clk 0:10:00.5]} 3. c4 {[%clk 0:10:03.8]} 3... dxc4 {[%clk 0:10:01.6]} 4.
e3 {[%clk 0:10:04.5]} 4... a6 {[%clk 0:09:59.9]} 5. Bxc4 {[%clk 0:10:02.5]} 5...
e6 {[%clk 0:10:00.9]} 6. O-O {[%clk 0:10:01.1]} 6... c5 {[%clk 0:10:01.6]} 7. a4
{[%clk 0:10:01.8]} 7... Be7 {[%clk 0:09:57.3]} 8. Nc3 {[%clk 0:10:02.7]} 8...
O-O {[%clk 0:09:57.2]} 9. Qe2 {[%clk 0:10:02.1]} 9... Nc6 {[%clk 0:09:52.6]} 10.
Rd1 {[%clk 0:09:53.7]} 10... Qc7 {[%clk 0:09:42.8]} 11. b3 {[%clk 0:09:02.7]}
11... Na5 {[%clk 0:09:37.4]} 12. Bb2 {[%clk 0:08:27]} 12... Bd7 {[%clk
0:09:03.2]} 13. d5 {[%clk 0:08:16.7]} 13... Nxc4 {[%clk 0:09:00.1]} 14. bxc4
{[%clk 0:08:17.4]} 14... exd5 {[%clk 0:08:57.8]} 15. Nxd5 {[%clk 0:08:01.1]}
15... Nxd5 {[%clk 0:08:58.3]} 16. cxd5 {[%clk 0:08:03]} 16... Bd6 {[%clk
0:08:35.3]} 17. a5 {[%clk 0:08:02.5]} 17... Rae8 {[%clk 0:08:05.7]} 18. h3
{[%clk 0:07:37.8]} 18... Bb5 {[%clk 0:07:49.7]} 19. Qc2 {[%clk 0:07:36.5]} 19...
f5 {[%clk 0:07:40.6]} 20. Ng5 {[%clk 0:05:56.1]} 20... Bd7 {[%clk 0:07:37.8]}
21. Qc4 {[%clk 0:05:24.8]} 21... Qc8 {[%clk 0:07:17]} 22. Rac1 {[%clk
0:04:56.8]} 22... Bb5 {[%clk 0:05:29.5]} 23. Qh4 {[%clk 0:04:53.7]} 23... h6
{[%clk 0:05:25.6]} 24. Ne6 {[%clk 0:04:54.5]} 24... Rf7 {[%clk 0:04:57.4]} 25.
Qh5 {[%clk 0:04:35]} 25... Rxe6 {[%clk 0:04:48.2]} 26. dxe6 {[%clk 0:04:35.6]}
26... Qxe6 {[%clk 0:04:50.1]} 27. Rd2 {[%clk 0:04:27.4]} 27... Bc6 {[%clk
0:04:32.7]} 28. Rcd1 {[%clk 0:03:32.6]} 28... Bc7 {[%clk 0:04:32.6]} 29. Bc3
{[%clk 0:03:31.1]} 29... Qe4 {[%clk 0:04:19.3]} 30. Qg6 {[%clk 0:03:25.1]} 30...
Qe7 {[%clk 0:03:07.9]} 31. Kh1 {[%clk 0:01:42.5]} 31... Qg5 {[%clk 0:03:04.1]}
32. Qxg5 {[%clk 0:01:40]} 32... hxg5 {[%clk 0:03:06]} 33. Kg1 {[%clk 0:01:19.9]}
33... Re7 {[%clk 0:03:05.8]} 34. Rd5 {[%clk 0:01:15.8]} 34... Bxd5 {[%clk
0:03:00.9]} 35. Rxd5 {[%clk 0:01:17.7]} 35... g6 {[%clk 0:02:13.9]} 36. Rxc5
{[%clk 0:01:12.8]} 36... Kf7 {[%clk 0:02:13.9]} 37. Kf1 {[%clk 0:01:01.3]} 37...
Rd7 {[%clk 0:02:14.6]} 38. Ke2 {[%clk 0:01:01.6]} 38... Bd8 {[%clk 0:02:15.8]}
39. g4 {[%clk 0:01:00]} 39... Ke6 {[%clk 0:02:13.3]} 40. Re5+ {[%clk 0:00:49.4]}
40... Kf6 {[%clk 0:02:11]} 41. Rxf5+ {[%clk 0:00:49.7]} 41... Ke6 {[%clk
0:02:10.2]} 42. Re5+ {[%clk 0:00:50.1]} 42... Kf7 {[%clk 0:02:11.2]} 43. Rc5
{[%clk 0:00:48.8]} 43... Be7 {[%clk 0:02:04.7]} 44. Rc8 {[%clk 0:00:44.8]} 44...
Bf6 {[%clk 0:01:44.9]} 45. Bxf6 {[%clk 0:00:41.2]} 45... Kxf6 {[%clk 0:01:46.8]}
46. Rc5 {[%clk 0:00:37.4]} 46... Rd6 {[%clk 0:01:40.1]} 47. Rc7 {[%clk
0:00:35.2]} 47... b6 {[%clk 0:01:40.2]} 48. axb6 {[%clk 0:00:36.4]} 48... Rxb6
{[%clk 0:01:41.1]} 49. Kf3 {[%clk 0:00:34.8]} 49... Ke6 {[%clk 0:01:33.6]} 50.
Rc5 {[%clk 0:00:32.1]} 50... Kf6 {[%clk 0:01:31.9]} 51. Ra5 {[%clk 0:00:32.8]}
51... Rc6 {[%clk 0:01:30.9]} 52. Kg3 {[%clk 0:00:33.6]} 52... Rb6 {[%clk
0:01:30.2]} 53. f3 {[%clk 0:00:22.7]} 53... Re6 {[%clk 0:01:27.4]} 54. e4 {[%clk
0:00:23.9]} 54... Rb6 {[%clk 0:01:26.5]} 55. h4 {[%clk 0:00:25.3]} 55... gxh4+
{[%clk 0:01:25.7]} 56. Kxh4 {[%clk 0:00:27.2]} 56... Rc6 {[%clk 0:01:20.6]} 57.
e5+ {[%clk 0:00:26.3]} 57... Kf7 {[%clk 0:01:14.7]} 58. Kg5 {[%clk 0:00:27.8]}
58... Rb6 {[%clk 0:00:41.1]} 59. f4 {[%clk 0:00:28.6]} 59... Kg7 {[%clk
0:00:36.2]} 60. Ra1 {[%clk 0:00:26.3]} 60... Re6 {[%clk 0:00:31.5]} 61. Rc1
{[%clk 0:00:21.9]} 61... Kf8 {[%clk 0:00:22.3]} 62. Rc8+ {[%clk 0:00:15]} 62...
Ke7 {[%clk 0:00:21.7]} 63. Rc7+ {[%clk 0:00:14.4]} 63... Kd8 {[%clk 0:00:19.3]}
64. Rc5 {[%clk 0:00:14.5]} 64... Ke7 {[%clk 0:00:19.6]} 65. f5 {[%clk
0:00:15.2]} 65... gxf5 {[%clk 0:00:20.3]} 66. gxf5 {[%clk 0:00:17.1]} 66... Rb6
{[%clk 0:00:21.4]} 67. Rc7+ {[%clk 0:00:17.7]} 67... Kd8 {[%clk 0:00:22]} 68.
Ra7 {[%clk 0:00:18]} 68... Rb5 {[%clk 0:00:20.8]} 69. e6 {[%clk 0:00:18.9]}
69... a5 {[%clk 0:00:21.4]} 70. Kf6 {[%clk 0:00:19.7]} 1-0

[Event "GrandPrix_30.05"]
[Site "Chess.com"]
[Date "2020.05.30"]
[Round "4"]
[White "Supernotar"]
[Black "iceboy88"]
[Result "1-0"]
[WhiteElo "2189"]
[BlackElo "2292"]
[TimeControl "600+2"]
[EndTime "9:56:33 PDT"]
[Termination "Supernotar won by resignation"]

1. d4 {[%clk 0:10:01.9]} 1... Nf6 {[%clk 0:10:00.1]} 2. c4 {[%clk 0:10:01.4]}
2... c5 {[%clk 0:09:59.6]} 3. Nf3 {[%clk 0:09:55]} 3... cxd4 {[%clk 0:09:59.1]}
4. Nxd4 {[%clk 0:09:55.6]} 4... e5 {[%clk 0:10:00.2]} 5. Nb5 {[%clk 0:09:56.2]}
5... d5 {[%clk 0:10:00.3]} 6. cxd5 {[%clk 0:09:57.3]} 6... Bc5 {[%clk
0:09:58.7]} 7. N5c3 {[%clk 0:09:58.2]} 7... O-O {[%clk 0:09:54.4]} 8. g3 {[%clk
0:09:59.2]} 8... Ng4 {[%clk 0:09:26.3]} 9. e3 {[%clk 0:09:54.4]} 9... f5 {[%clk
0:09:25.4]} 10. Be2 {[%clk 0:09:39.4]} 10... h5 {[%clk 0:08:32.7]} 11. h3 {[%clk
0:09:07.4]} 11... Nf6 {[%clk 0:08:01.1]} 12. Bxh5 {[%clk 0:08:57.2]} 12... Nxh5
{[%clk 0:08:01.6]} 13. Qxh5 {[%clk 0:08:57.1]} 13... e4 {[%clk 0:07:52.1]} 14.
Nd2 {[%clk 0:08:36.4]} 14... Nd7 {[%clk 0:07:47.8]} 15. Nb3 {[%clk 0:08:27.1]}
15... Bd6 {[%clk 0:06:22.6]} 16. Nd4 {[%clk 0:07:39.7]} 16... Ne5 {[%clk
0:06:21.6]} 17. Kf1 {[%clk 0:07:27.9]} 17... Rf6 {[%clk 0:05:18.5]} 18. Kg2
{[%clk 0:07:12.4]} 18... Nf3 {[%clk 0:05:07.4]} 19. Ne6 {[%clk 0:05:54.8]} 19...
Bxe6 {[%clk 0:03:44.7]} 20. dxe6 {[%clk 0:05:55.3]} 20... g6 {[%clk 0:03:35.3]}
21. Qh6 {[%clk 0:05:43.9]} 21... Bf8 {[%clk 0:03:35.6]} 22. e7 {[%clk
0:04:50.7]} 22... Qxe7 {[%clk 0:03:23.8]} 23. Nd5 {[%clk 0:04:45.8]} 23... Qd6
{[%clk 0:03:21.3]} 24. Nxf6+ {[%clk 0:04:42.7]} 24... Qxf6 {[%clk 0:03:23.2]}
25. Qf4 {[%clk 0:04:43.4]} 25... Bd6 {[%clk 0:03:05.7]} 26. Qh6 {[%clk 0:04:44]}
26... Bf8 {[%clk 0:03:04.4]} 27. Qf4 {[%clk 0:04:45.1]} 27... Rc8 {[%clk
0:02:53.2]} 28. h4 {[%clk 0:04:36.6]} 28... Bd6 {[%clk 0:02:12.5]} 29. Qh6
{[%clk 0:04:37.1]} 29... Bf8 {[%clk 0:01:49.9]} 30. Qf4 {[%clk 0:04:37.5]} 30...
Ne5 {[%clk 0:01:24.5]} 31. Qg5 {[%clk 0:04:07.6]} 31... Qxg5 {[%clk 0:01:19.6]}
32. hxg5 {[%clk 0:04:08]} 32... Rc2 {[%clk 0:01:20.4]} 33. Rd1 {[%clk
0:03:43.4]} 33... Nd3 {[%clk 0:01:20.5]} 34. Bd2 {[%clk 0:02:39.5]} 34... Rxb2
{[%clk 0:01:10.5]} 35. Rab1 {[%clk 0:02:31.8]} 35... Rxa2 {[%clk 0:01:11.3]} 36.
Rxb7 {[%clk 0:02:30.2]} 36... a5 {[%clk 0:01:12.2]} 37. Kf1 {[%clk 0:01:31]}
37... a4 {[%clk 0:01:06.9]} 38. Be1 {[%clk 0:00:53.4]} 38... a3 {[%clk 0:01:06]}
39. Rb8 {[%clk 0:00:47.8]} 39... Rc2 {[%clk 0:00:41.8]} 40. Ra8 {[%clk
0:00:20.4]} 40... Kf7 {[%clk 0:00:40.6]} 41. Ra7+ {[%clk 0:00:20.5]} 41... Ke6
{[%clk 0:00:39.8]} 42. Ra6+ {[%clk 0:00:16.4]} 42... Bd6 {[%clk 0:00:32.7]} 43.
Ra1 {[%clk 0:00:07.7]} 43... Kd5 {[%clk 0:00:30]} 44. Kg1 {[%clk 0:00:04]} 44...
Re2 {[%clk 0:00:13.2]} 45. Kf1 {[%clk 0:00:04.6]} 45... Rxe1+ {[%clk 0:00:12.6]}
46. Rxe1 {[%clk 0:00:04.6]} 46... Nxe1 {[%clk 0:00:13.2]} 47. Kxe1 {[%clk
0:00:06.5]} 47... Bb4+ {[%clk 0:00:12.2]} 48. Kd1 {[%clk 0:00:07.6]} 48... Kc4
{[%clk 0:00:11.9]} 49. Kc2 {[%clk 0:00:07.5]} 49... Bc3 {[%clk 0:00:08.3]} 50.
Rxa3 {[%clk 0:00:07.6]} 50... Be1 {[%clk 0:00:08.9]} 51. Ra6 {[%clk 0:00:07.7]}
51... Bxf2 {[%clk 0:00:10]} 52. Rxg6 {[%clk 0:00:08.5]} 52... Bxe3 {[%clk
0:00:11.6]} 53. Rg8 {[%clk 0:00:06]} 53... Kd5 {[%clk 0:00:12.3]} 54. g6 {[%clk
0:00:05.8]} 54... Ke6 {[%clk 0:00:13.5]} 55. Rf8 {[%clk 0:00:06.1]} 55... Bh6
{[%clk 0:00:14.1]} 56. Rf7 {[%clk 0:00:07]} 56... Be3 {[%clk 0:00:05.8]} 57. Kd1
{[%clk 0:00:06.8]} 57... Bd4 {[%clk 0:00:06]} 58. Ke2 {[%clk 0:00:07.9]} 58...
Be5 {[%clk 0:00:06.4]} 59. Kf1 {[%clk 0:00:08.1]} 59... Bxg3 {[%clk 0:00:06.3]}
60. Rf8 {[%clk 0:00:07.9]} 60... Be5 {[%clk 0:00:06.8]} 61. Re8+ {[%clk
0:00:08.3]} 61... Kf6 {[%clk 0:00:07.5]} 62. Rxe5 {[%clk 0:00:09.1]} 62... Kxg6
{[%clk 0:00:09]} 63. Ra5 {[%clk 0:00:09.9]} 63... Kg5 {[%clk 0:00:10.3]} 64. Ke2
{[%clk 0:00:11.1]} 64... Kf4 {[%clk 0:00:11.3]} 65. Ra4 {[%clk 0:00:11.7]} 65...
Kg3 {[%clk 0:00:12.3]} 66. Ra3+ {[%clk 0:00:12.2]} 66... Kg2 {[%clk 0:00:13.3]}
67. Ke3 {[%clk 0:00:13.1]} 67... Kg3 {[%clk 0:00:14.8]} 68. Ra1 {[%clk
0:00:14.1]} 68... Kg2 {[%clk 0:00:14.1]} 69. Kf4 {[%clk 0:00:13.9]} 69... Kf2
{[%clk 0:00:15.4]} 70. Ra3 {[%clk 0:00:14.9]} 70... e3 {[%clk 0:00:15.2]} 71.
Rxe3 {[%clk 0:00:15.4]} 1-0